[Event "Titled Tuesday Blitz July 18 Early 2023"]
[White "Suleymanli, Suleyman"]
[Black "Elsa167"]
[WhiteFideId "13416375"]
[WhiteElo "2632"]
[BlackElo "2801"]
[Result "0-1"]
[Round "5"]
[TimeControl "180+2"]
[Date "2023.07.18"]
[WhiteClock "0:01:55"]
[BlackClock "0:01:00"]
[Board "33"]

1. Nf3 {[%clk 0:03:00]}  d5 {[%clk 0:02:58]} 2. g3 {[%clk 0:03:01]}  Nf6 {[%clk 0:02:57]} 3. Bg2 {[%clk 0:03:01]}  e6 {[%clk 0:02:56]} 4. O-O {[%clk 0:03:02]}  Be7 {[%clk 0:02:57]} 5. d4 {[%clk 0:03:03]}  O-O {[%clk 0:02:58]} 6. c4 {[%clk 0:03:04]}  a5 {[%clk 0:02:58]} 7. cxd5 {[%clk 0:03:02]}  exd5 {[%clk 0:02:58]} 8. Nc3 {[%clk 0:03:02]}  c6 {[%clk 0:02:58]} 9. Bf4 {[%clk 0:03:03]}  Bf5 {[%clk 0:02:57]} 10. Ne5 {[%clk 0:03:03]}  Nbd7 {[%clk 0:02:55]} 11. Re1 {[%clk 0:03:03]}  Bb4 {[%clk 0:02:51]} 12. a3 {[%clk 0:03:02]}  Bxc3 {[%clk 0:02:51]} 13. bxc3 {[%clk 0:03:03]}  a4 {[%clk 0:02:45]} 14. f3 {[%clk 0:03:00]}  Nxe5 {[%clk 0:02:40]} 15. Bxe5 {[%clk 0:02:59]}  Nd7 {[%clk 0:02:32]} 16. Bf4 {[%clk 0:02:58]}  b5 {[%clk 0:02:23]} 17. e4 {[%clk 0:02:58]}  Be6 {[%clk 0:02:24]} 18. Qc2 {[%clk 0:02:55]}  Nb6 {[%clk 0:02:22]} 19. e5 {[%clk 0:02:53]}  Nc4 {[%clk 0:02:21]} 20. Bd2 {[%clk 0:02:52]}  Qd7 {[%clk 0:02:20]} 21. Bf1 {[%clk 0:02:50]}  Bf5 {[%clk 0:02:19]} 22. Bd3 {[%clk 0:02:48]}  Bxd3 {[%clk 0:02:19]} 23. Qxd3 {[%clk 0:02:49]}  Rae8 {[%clk 0:02:18]} 24. f4 {[%clk 0:02:50]}  f5 {[%clk 0:02:10]} 25. Re2 {[%clk 0:02:42]}  Qe6 {[%clk 0:02:07]} 26. Bc1 {[%clk 0:02:40]}  h6 {[%clk 0:02:06]} 27. Raa2 {[%clk 0:02:37]}  Kh8 {[%clk 0:02:05]} 28. h4 {[%clk 0:02:38]}  Qg6 {[%clk 0:02:04]} 29. Qf3 {[%clk 0:02:36]}  h5 {[%clk 0:01:59]} 30. Kf2 {[%clk 0:02:35]}  Qg4 {[%clk 0:01:57]} 31. Qxg4 {[%clk 0:02:35]}  hxg4 {[%clk 0:01:58]} 32. Ke1 {[%clk 0:02:33]}  Kg8 {[%clk 0:01:58]} 33. Kd1 {[%clk 0:02:33]}  Kf7 {[%clk 0:01:58]} 34. Kc2 {[%clk 0:02:32]}  Ke6 {[%clk 0:01:59]} 35. Kb1 {[%clk 0:02:33]}  Rc8 {[%clk 0:01:58]} 36. Rac2 {[%clk 0:02:33]}  Rc7 {[%clk 0:01:58]} 37. Be3 {[%clk 0:02:33]}  Nxa3+ {[%clk 0:01:58]} 38. Ka2 {[%clk 0:02:33]}  Nxc2 {[%clk 0:01:58]} 39. Rxc2 {[%clk 0:02:34]}  Rb8 {[%clk 0:01:36]} 40. Rb2 {[%clk 0:02:34]}  a3 {[%clk 0:01:21]} 41. Kxa3 {[%clk 0:02:33]}  Ra8+ {[%clk 0:01:20]} 42. Kb4 {[%clk 0:02:32]}  Kd7 {[%clk 0:01:12]} 43. Kc5 {[%clk 0:02:29]}  Rb7 {[%clk 0:01:10]} 44. e6+ {[%clk 0:02:26]}  Kc7 {[%clk 0:01:09]} 45. Bc1 {[%clk 0:02:21]}  b4 {[%clk 0:01:00]} 46. Rxb4 {[%clk 0:01:55]}  Ra5+ {[%clk 0:01:00]} 0-1


[Site "https://www.chess.com"]

[Event "Titled Tuesday Blitz July 18 Early 2023"]
[White "Fiorito, Francisco"]
[Black "Wagner, Dennis"]
[WhiteFideId "180165"]
[BlackFideId "24650684"]
[WhiteElo "2612"]
[BlackElo "2776"]
[Result "0-1"]
[Round "5"]
[TimeControl "180+2"]
[Date "2023.07.18"]
[WhiteClock "0:00:08"]
[BlackClock "0:00:22"]
[Board "35"]

1. d4 {[%clk 0:03:00]}  Nf6 {[%clk 0:02:59]} 2. Nc3 {[%clk 0:03:00]}  d5 {[%clk 0:02:58]} 3. Bf4 {[%clk 0:03:00]}  c5 {[%clk 0:02:58]} 4. e3 {[%clk 0:03:01]}  cxd4 {[%clk 0:02:59]} 5. exd4 {[%clk 0:03:01]}  Bg4 {[%clk 0:02:59]} 6. f3 {[%clk 0:03:02]}  Bd7 {[%clk 0:03:00]} 7. g4 {[%clk 0:03:01]}  e6 {[%clk 0:02:53]} 8. Qd2 {[%clk 0:02:58]}  Be7 {[%clk 0:02:44]} 9. h4 {[%clk 0:02:57]}  a6 {[%clk 0:02:37]} 10. h5 {[%clk 0:02:55]}  h6 {[%clk 0:02:37]} 11. O-O-O {[%clk 0:02:43]}  b5 {[%clk 0:02:36]} 12. Bh3 {[%clk 0:02:38]}  b4 {[%clk 0:02:35]} 13. Nb1 {[%clk 0:02:34]}  a5 {[%clk 0:02:33]} 14. Ne2 {[%clk 0:02:33]}  a4 {[%clk 0:02:28]} 15. Rdg1 {[%clk 0:02:10]}  Nc6 {[%clk 0:02:27]} 16. g5 {[%clk 0:02:10]}  hxg5 {[%clk 0:02:07]} 17. Bxg5 {[%clk 0:02:00]}  Rxh5 {[%clk 0:02:01]} 18. Nf4 {[%clk 0:01:59]}  Rxg5 {[%clk 0:01:38]} 19. Rxg5 {[%clk 0:01:56]}  Ne4 {[%clk 0:01:38]} 20. fxe4 {[%clk 0:01:54]}  Bxg5 {[%clk 0:01:38]} 21. exd5 {[%clk 0:01:52]}  Qf6 {[%clk 0:01:26]} 22. Rf1 {[%clk 0:01:44]}  Nxd4 {[%clk 0:01:23]} 23. Kd1 {[%clk 0:01:35]}  e5 {[%clk 0:01:17]} 24. Bxd7+ {[%clk 0:01:32]}  Kxd7 {[%clk 0:01:16]} 25. Qxb4 {[%clk 0:01:33]}  Ra7 {[%clk 0:00:33]} 26. Nc3 {[%clk 0:00:37]}  Qf5 {[%clk 0:00:23]} 27. Rf2 {[%clk 0:00:19]}  Bxf4 {[%clk 0:00:23]} 28. Nxa4 {[%clk 0:00:09]}  Qg4+ {[%clk 0:00:22]} 29. Ke1 {[%clk 0:00:08]}  Qg1+ {[%clk 0:00:20]} 30. Rf1 {[%clk 0:00:08]}  Qe3+ {[%clk 0:00:21]} 31. Kd1 {[%clk 0:00:08]}  Qc1# {[%clk 0:00:22]} 0-1


[Site "https://www.chess.com"]

[Event "Titled Tuesday Blitz July 18 Early 2023"]
[White "Klimkowski, Jan"]
[Black "Shukhman, Anna"]
[WhiteFideId "21856222"]
[BlackFideId "54180058"]
[WhiteElo "2775"]
[BlackElo "2611"]
[Result "1-0"]
[Round "5"]
[TimeControl "180+2"]
[Date "2023.07.18"]
[WhiteClock "0:00:47"]
[BlackClock "0:00:27"]
[Board "36"]

1. e4 {[%clk 0:03:00]}  c5 {[%clk 0:02:57]} 2. Nf3 {[%clk 0:03:00]}  a6 {[%clk 0:02:57]} 3. c4 {[%clk 0:03:00]}  Nc6 {[%clk 0:02:56]} 4. d4 {[%clk 0:02:59]}  cxd4 {[%clk 0:02:57]} 5. Nxd4 {[%clk 0:03:00]}  Nf6 {[%clk 0:02:57]} 6. Nc3 {[%clk 0:03:00]}  e5 {[%clk 0:02:57]} 7. Nf5 {[%clk 0:02:57]}  d5 {[%clk 0:02:56]} 8. Bg5 {[%clk 0:02:34]}  Bxf5 {[%clk 0:02:49]} 9. exf5 {[%clk 0:02:34]}  d4 {[%clk 0:02:44]} 10. Nd5 {[%clk 0:02:33]}  Be7 {[%clk 0:02:40]} 11. Bxf6 {[%clk 0:02:24]}  Bxf6 {[%clk 0:02:39]} 12. Bd3 {[%clk 0:02:24]}  Ne7 {[%clk 0:02:33]} 13. Qa4+ {[%clk 0:02:12]}  b5 {[%clk 0:02:19]} 14. Nxf6+ {[%clk 0:02:12]}  gxf6 {[%clk 0:02:19]} 15. cxb5 {[%clk 0:02:12]}  Qd5 {[%clk 0:02:03]} 16. bxa6+ {[%clk 0:02:06]}  Kf8 {[%clk 0:02:02]} 17. f3 {[%clk 0:02:06]}  Ra7 {[%clk 0:01:54]} 18. O-O {[%clk 0:02:03]}  h5 {[%clk 0:01:51]} 19. h4 {[%clk 0:01:58]}  Kg7 {[%clk 0:01:40]} 20. Rac1 {[%clk 0:01:51]}  Rb8 {[%clk 0:01:39]} 21. b4 {[%clk 0:01:48]}  Nc8 {[%clk 0:01:08]} 22. Be4 {[%clk 0:01:37]}  Nb6 {[%clk 0:01:01]} 23. Bxd5 {[%clk 0:01:19]}  Nxa4 {[%clk 0:01:00]} 24. Bb7 {[%clk 0:01:19]}  Nc3 {[%clk 0:00:50]} 25. Rxc3 {[%clk 0:00:54]}  dxc3 {[%clk 0:00:51]} 26. Rc1 {[%clk 0:00:40]}  Rbxb7 {[%clk 0:00:51]} 27. axb7 {[%clk 0:00:40]}  Rxb7 {[%clk 0:00:51]} 28. a3 {[%clk 0:00:41]}  Rc7 {[%clk 0:00:49]} 29. b5 {[%clk 0:00:40]}  c2 {[%clk 0:00:47]} 30. b6 {[%clk 0:00:40]}  Rb7 {[%clk 0:00:40]} 31. Rxc2 {[%clk 0:00:39]}  Rxb6 {[%clk 0:00:40]} 32. Ra2 {[%clk 0:00:40]}  Rb5 {[%clk 0:00:37]} 33. a4 {[%clk 0:00:40]}  Ra5 {[%clk 0:00:37]} 34. g4 {[%clk 0:00:40]}  Kf8 {[%clk 0:00:38]} 35. Kf2 {[%clk 0:00:39]}  Ke7 {[%clk 0:00:37]} 36. Ke3 {[%clk 0:00:39]}  Kd6 {[%clk 0:00:37]} 37. Ra1 {[%clk 0:00:35]}  Kc5 {[%clk 0:00:31]} 38. gxh5 {[%clk 0:00:33]}  Ra8 {[%clk 0:00:29]} 39. a5 {[%clk 0:00:33]}  Ra6 {[%clk 0:00:22]} 40. h6 {[%clk 0:00:32]}  Kb5 {[%clk 0:00:22]} 41. h7 {[%clk 0:00:32]}  Ra8 {[%clk 0:00:23]} 42. a6 {[%clk 0:00:32]}  Kb6 {[%clk 0:00:22]} 43. a7 {[%clk 0:00:33]}  Kb7 {[%clk 0:00:22]} 44. h8=Q {[%clk 0:00:33]}  Rxh8 {[%clk 0:00:21]} 45. a8=Q+ {[%clk 0:00:34]}  Rxa8 {[%clk 0:00:22]} 46. Rxa8 {[%clk 0:00:34]}  Kxa8 {[%clk 0:00:23]} 47. h5 {[%clk 0:00:35]}  Kb7 {[%clk 0:00:24]} 48. h6 {[%clk 0:00:36]}  Kc6 {[%clk 0:00:24]} 49. h7 {[%clk 0:00:37]}  e4 {[%clk 0:00:25]} 50. h8=Q {[%clk 0:00:38]}  exf3 {[%clk 0:00:26]} 51. Kxf3 {[%clk 0:00:38]}  Kd6 {[%clk 0:00:25]} 52. Qxf6+ {[%clk 0:00:39]}  Kd5 {[%clk 0:00:26]} 53. Qxf7+ {[%clk 0:00:40]}  Ke5 {[%clk 0:00:26]} 54. f6 {[%clk 0:00:41]}  Kd4 {[%clk 0:00:26]} 55. Qg7 {[%clk 0:00:42]}  Ke5 {[%clk 0:00:27]} 56. f7+ {[%clk 0:00:43]}  Kd5 {[%clk 0:00:28]} 57. f8=Q {[%clk 0:00:44]}  Kc4 {[%clk 0:00:28]} 58. Qge7 {[%clk 0:00:45]}  Kd3 {[%clk 0:00:28]} 59. Qfd8+ {[%clk 0:00:46]}  Kc2 {[%clk 0:00:27]} 60. Qec7+ {[%clk 0:00:47]} 1-0


[Site "https://www.chess.com"]

[Event "Titled Tuesday Blitz July 18 Early 2023"]
[White "Krzyzanowski, Marcin"]
[Black "Sanchez Alvares, Kelvin Antonio"]
[WhiteFideId "1132199"]
[BlackFideId "3906680"]
[WhiteElo "2773"]
[BlackElo "2610"]
[Result "1-0"]
[Round "5"]
[TimeControl "180+2"]
[Date "2023.07.18"]
[WhiteClock "0:01:19"]
[BlackClock "0:00:39"]
[Board "37"]

1. e4 {[%clk 0:03:00]}  e5 {[%clk 0:03:00]} 2. Nf3 {[%clk 0:03:00]}  Nc6 {[%clk 0:03:01]} 3. Bb5 {[%clk 0:02:58]}  a6 {[%clk 0:03:01]} 4. Ba4 {[%clk 0:02:56]}  Nf6 {[%clk 0:03:02]} 5. Nc3 {[%clk 0:02:52]}  b5 {[%clk 0:02:57]} 6. Bb3 {[%clk 0:02:51]}  Be7 {[%clk 0:02:57]} 7. a4 {[%clk 0:02:43]}  b4 {[%clk 0:02:55]} 8. Nd5 {[%clk 0:02:42]}  O-O {[%clk 0:02:44]} 9. d3 {[%clk 0:02:20]}  h6 {[%clk 0:02:34]} 10. h4 {[%clk 0:02:08]}  d6 {[%clk 0:02:28]} 11. Nxf6+ {[%clk 0:02:07]}  Bxf6 {[%clk 0:02:27]} 12. Bd5 {[%clk 0:02:08]}  Bd7 {[%clk 0:02:26]} 13. g4 {[%clk 0:02:06]}  Be7 {[%clk 0:02:08]} 14. g5 {[%clk 0:02:05]}  g6 {[%clk 0:02:00]} 15. h5 {[%clk 0:01:44]}  hxg5 {[%clk 0:01:21]} 16. hxg6 {[%clk 0:01:42]}  Kg7 {[%clk 0:01:20]} 17. Rh7+ {[%clk 0:01:21]}  Kxg6 {[%clk 0:00:39]} 18. Nxg5 {[%clk 0:01:19]} 1-0


[Site "https://www.chess.com"]

[Event "Titled Tuesday Blitz July 18 Early 2023"]
[White "Mahdavi, Reza"]
[Black "Leon Oquendo, Jorge"]
[WhiteFideId "12595926"]
[BlackFideId "3514803"]
[WhiteElo "2772"]
[BlackElo "2608"]
[Result "1-0"]
[Round "5"]
[TimeControl "180+2"]
[Date "2023.07.18"]
[WhiteClock "0:01:12"]
[BlackClock "0:00:12"]
[Board "38"]

1. e4 {[%clk 0:02:55]}  c5 {[%clk 0:02:57]} 2. Nf3 {[%clk 0:02:56]}  d6 {[%clk 0:02:57]} 3. d4 {[%clk 0:02:56]}  cxd4 {[%clk 0:02:58]} 4. Qxd4 {[%clk 0:02:57]}  Nc6 {[%clk 0:02:53]} 5. Bb5 {[%clk 0:02:56]}  Bd7 {[%clk 0:02:54]} 6. Bxc6 {[%clk 0:02:56]}  Bxc6 {[%clk 0:02:54]} 7. Nc3 {[%clk 0:02:57]}  Nf6 {[%clk 0:02:53]} 8. Bg5 {[%clk 0:02:57]}  e6 {[%clk 0:02:52]} 9. O-O-O {[%clk 0:02:57]}  Be7 {[%clk 0:02:50]} 10. Qd3 {[%clk 0:02:56]}  O-O {[%clk 0:02:46]} 11. Nd4 {[%clk 0:02:51]}  Rc8 {[%clk 0:02:36]} 12. Kb1 {[%clk 0:02:45]}  Qa5 {[%clk 0:02:28]} 13. h4 {[%clk 0:02:43]}  a6 {[%clk 0:02:03]} 14. f3 {[%clk 0:02:34]}  b5 {[%clk 0:02:01]} 15. g4 {[%clk 0:02:33]}  b4 {[%clk 0:02:01]} 16. Nce2 {[%clk 0:02:33]}  Bb5 {[%clk 0:01:53]} 17. Qd2 {[%clk 0:02:26]}  Bxe2 {[%clk 0:01:28]} 18. Qxe2 {[%clk 0:02:26]}  Rc7 {[%clk 0:01:20]} 19. Nb3 {[%clk 0:02:20]}  Qb5 {[%clk 0:01:14]} 20. Qxb5 {[%clk 0:02:14]}  axb5 {[%clk 0:01:15]} 21. Bxf6 {[%clk 0:02:15]}  gxf6 {[%clk 0:01:11]} 22. Rd4 {[%clk 0:02:15]}  Rc4 {[%clk 0:01:09]} 23. Rhd1 {[%clk 0:02:11]}  Rfc8 {[%clk 0:01:09]} 24. R1d2 {[%clk 0:02:11]}  f5 {[%clk 0:01:05]} 25. exf5 {[%clk 0:02:05]}  d5 {[%clk 0:01:01]} 26. fxe6 {[%clk 0:02:02]}  fxe6 {[%clk 0:01:02]} 27. g5 {[%clk 0:02:01]}  Kf7 {[%clk 0:01:01]} 28. Na5 {[%clk 0:01:56]}  Rxd4 {[%clk 0:00:55]} 29. Rxd4 {[%clk 0:01:57]}  Bc5 {[%clk 0:00:37]} 30. Rf4+ {[%clk 0:01:56]}  Ke7 {[%clk 0:00:37]} 31. Nb3 {[%clk 0:01:51]}  Bd6 {[%clk 0:00:37]} 32. Rf6 {[%clk 0:01:49]}  Be5 {[%clk 0:00:16]} 33. Rh6 {[%clk 0:01:48]}  Bg7 {[%clk 0:00:17]} 34. Rxh7 {[%clk 0:01:44]}  Kf7 {[%clk 0:00:18]} 35. h5 {[%clk 0:01:45]}  Kg8 {[%clk 0:00:18]} 36. g6 {[%clk 0:01:44]}  Rf8 {[%clk 0:00:18]} 37. h6 {[%clk 0:01:43]}  Be5 {[%clk 0:00:18]} 38. Rb7 {[%clk 0:01:38]}  Rxf3 {[%clk 0:00:18]} 39. Re7 {[%clk 0:01:16]}  Rf1+ {[%clk 0:00:16]} 40. Nc1 {[%clk 0:01:16]}  Rf6 {[%clk 0:00:12]} 41. h7+ {[%clk 0:01:12]} 1-0


[Site "https://www.chess.com"]

[Event "Titled Tuesday Blitz July 18 Early 2023"]
[White "Zaragatski, Ilja"]
[Black "djokovic74"]
[WhiteFideId "4655192"]
[WhiteElo "2596"]
[BlackElo "2763"]
[Result "1-0"]
[Round "5"]
[TimeControl "180+2"]
[Date "2023.07.18"]
[WhiteClock "0:00:02"]
[BlackClock "0:00:00"]
[Board "39"]

1. c4 {[%clk 0:03:00]}  e6 {[%clk 0:03:00]} 2. g3 {[%clk 0:03:00]}  Nf6 {[%clk 0:03:00]} 3. Bg2 {[%clk 0:03:01]}  d5 {[%clk 0:03:01]} 4. Nf3 {[%clk 0:03:01]}  Be7 {[%clk 0:03:02]} 5. O-O {[%clk 0:03:02]}  O-O {[%clk 0:03:02]} 6. b3 {[%clk 0:03:02]}  d4 {[%clk 0:03:03]} 7. e3 {[%clk 0:03:01]}  c5 {[%clk 0:03:03]} 8. exd4 {[%clk 0:03:02]}  cxd4 {[%clk 0:03:04]} 9. Ne5 {[%clk 0:03:02]}  Nbd7 {[%clk 0:03:02]} 10. Re1 {[%clk 0:02:52]}  Nxe5 {[%clk 0:03:00]} 11. Rxe5 {[%clk 0:02:52]}  Bd6 {[%clk 0:02:57]} 12. Re1 {[%clk 0:02:51]}  e5 {[%clk 0:02:57]} 13. d3 {[%clk 0:02:40]}  Qc7 {[%clk 0:02:55]} 14. Ba3 {[%clk 0:02:39]}  Bxa3 {[%clk 0:02:51]} 15. Nxa3 {[%clk 0:02:40]}  a6 {[%clk 0:02:48]} 16. Nc2 {[%clk 0:02:38]}  Bf5 {[%clk 0:02:44]} 17. Nb4 {[%clk 0:02:37]}  a5 {[%clk 0:02:34]} 18. Nd5 {[%clk 0:02:37]}  Nxd5 {[%clk 0:02:34]} 19. Bxd5 {[%clk 0:02:38]}  Ra6 {[%clk 0:02:33]} 20. Qe2 {[%clk 0:01:49]}  Re8 {[%clk 0:02:28]} 21. f4 {[%clk 0:01:48]}  Kh8 {[%clk 0:02:16]} 22. fxe5 {[%clk 0:01:46]}  f6 {[%clk 0:02:16]} 23. Qf3 {[%clk 0:01:30]}  Bg6 {[%clk 0:01:56]} 24. e6 {[%clk 0:01:20]}  Qc5 {[%clk 0:01:38]} 25. Rad1 {[%clk 0:01:03]}  b5 {[%clk 0:01:32]} 26. cxb5 {[%clk 0:00:56]}  Rd6 {[%clk 0:01:30]} 27. Bc4 {[%clk 0:00:51]}  Bh5 {[%clk 0:01:29]} 28. g4 {[%clk 0:00:51]}  Bg6 {[%clk 0:01:15]} 29. Rd2 {[%clk 0:00:51]}  h6 {[%clk 0:00:58]} 30. Rde2 {[%clk 0:00:51]}  Re7 {[%clk 0:00:54]} 31. h4 {[%clk 0:00:51]}  h5 {[%clk 0:00:53]} 32. g5 {[%clk 0:00:49]}  f5 {[%clk 0:00:45]} 33. Re5 {[%clk 0:00:43]}  Qb4 {[%clk 0:00:45]} 34. R1e2 {[%clk 0:00:41]}  Rd8 {[%clk 0:00:39]} 35. Kg2 {[%clk 0:00:39]}  Qc3 {[%clk 0:00:36]} 36. b6 {[%clk 0:00:35]}  f4 {[%clk 0:00:36]} 37. b7 {[%clk 0:00:34]}  Qb4 {[%clk 0:00:30]} 38. Rb5 {[%clk 0:00:30]}  Qd6 {[%clk 0:00:30]} 39. Qd5 {[%clk 0:00:30]}  f3+ {[%clk 0:00:22]} 40. Kxf3 {[%clk 0:00:24]}  Rf8+ {[%clk 0:00:21]} 41. Kg2 {[%clk 0:00:25]}  Qf4 {[%clk 0:00:19]} 42. Qe5 {[%clk 0:00:10]}  Qg4+ {[%clk 0:00:15]} 43. Kh2 {[%clk 0:00:10]}  Qxh4+ {[%clk 0:00:15]} 44. Kg2 {[%clk 0:00:11]}  Qg4+ {[%clk 0:00:16]} 45. Kh2 {[%clk 0:00:11]}  Qh4+ {[%clk 0:00:03]} 46. Kg1 {[%clk 0:00:12]}  Qg4+ {[%clk 0:00:03]} 47. Rg2 {[%clk 0:00:12]}  Qd1+ {[%clk 0:00:03]} 48. Kh2 {[%clk 0:00:12]}  Rf1 {[%clk 0:00:03]} 49. b8=Q+ {[%clk 0:00:11]}  Kh7 {[%clk 0:00:04]} 50. Qe2 {[%clk 0:00:07]}  Rh1+ {[%clk 0:00:04]} 51. Kg3 {[%clk 0:00:07]}  h4+ {[%clk 0:00:04]} 52. Kg4 {[%clk 0:00:08]}  Qc1 {[%clk 0:00:02]} 53. Qf4 {[%clk 0:00:07]}  Bh5+ {[%clk 0:00:02]} 54. Kf5 {[%clk 0:00:04]}  g6+ {[%clk 0:00:01]} 55. Ke5 {[%clk 0:00:04]}  Re1 {[%clk 0:00:02]} 56. Qxc1 {[%clk 0:00:03]}  Rxc1 {[%clk 0:00:00]} 57. Qe4 {[%clk 0:00:02]} 1-0


[Site "https://www.chess.com"]

[Event "Titled Tuesday Blitz July 18 Early 2023"]
[White "Dzhumagaliev, Yan"]
[Black "Pham, Khoi"]
[WhiteFideId "24100110"]
[BlackFideId "1054988"]
[WhiteElo "2763"]
[BlackElo "2595"]
[Result "0-1"]
[Round "5"]
[TimeControl "180+2"]
[Date "2023.07.18"]
[WhiteClock "0:00:06"]
[BlackClock "0:01:33"]
[Board "40"]

1. Nf3 {[%clk 0:02:59]}  Nf6 {[%clk 0:02:57]} 2. d4 {[%clk 0:02:59]}  g6 {[%clk 0:02:57]} 3. g3 {[%clk 0:02:59]}  Bg7 {[%clk 0:02:57]} 4. Bg2 {[%clk 0:03:00]}  O-O {[%clk 0:02:58]} 5. O-O {[%clk 0:03:01]}  d6 {[%clk 0:02:59]} 6. a4 {[%clk 0:03:01]}  Bf5 {[%clk 0:02:55]} 7. a5 {[%clk 0:03:02]}  Na6 {[%clk 0:02:53]} 8. c4 {[%clk 0:03:01]}  c6 {[%clk 0:02:53]} 9. Nc3 {[%clk 0:03:01]}  Ne4 {[%clk 0:02:53]} 10. Qb3 {[%clk 0:02:54]}  Qc7 {[%clk 0:02:49]} 11. Nh4 {[%clk 0:02:52]}  Nxc3 {[%clk 0:02:45]} 12. bxc3 {[%clk 0:02:53]}  Bd7 {[%clk 0:02:44]} 13. Nf3 {[%clk 0:02:43]}  Rfe8 {[%clk 0:02:25]} 14. e4 {[%clk 0:02:38]}  e5 {[%clk 0:02:23]} 15. Re1 {[%clk 0:02:24]}  Bg4 {[%clk 0:02:21]} 16. Bb2 {[%clk 0:02:17]}  Rab8 {[%clk 0:02:21]} 17. h3 {[%clk 0:02:05]}  Bxf3 {[%clk 0:02:16]} 18. Bxf3 {[%clk 0:02:06]}  b5 {[%clk 0:02:16]} 19. axb6 {[%clk 0:01:54]}  Rxb6 {[%clk 0:02:15]} 20. Qc2 {[%clk 0:01:55]}  Reb8 {[%clk 0:02:11]} 21. Qd3 {[%clk 0:00:33]}  exd4 {[%clk 0:01:52]} 22. cxd4 {[%clk 0:00:26]}  Rxb2 {[%clk 0:01:51]} 23. Rxa6 {[%clk 0:00:24]}  R8b3 {[%clk 0:01:51]} 24. Qd1 {[%clk 0:00:24]}  Qb7 {[%clk 0:01:43]} 25. Ra1 {[%clk 0:00:18]}  Qb4 {[%clk 0:01:43]} 26. e5 {[%clk 0:00:16]}  Rd2 {[%clk 0:01:40]} 27. Qc1 {[%clk 0:00:03]}  Rxf3 {[%clk 0:01:40]} 28. exd6 {[%clk 0:00:04]}  Rfxf2 {[%clk 0:01:41]} 29. d7 {[%clk 0:00:04]}  Rg2+ {[%clk 0:01:34]} 30. Kh1 {[%clk 0:00:04]}  Rh2+ {[%clk 0:01:35]} 31. Kg1 {[%clk 0:00:04]}  Bxd4+ {[%clk 0:01:35]} 32. Kf1 {[%clk 0:00:05]}  Rdf2+ {[%clk 0:01:32]} 33. Kg1 {[%clk 0:00:06]}  Rfg2+ {[%clk 0:01:33]} 34. Kf1 {[%clk 0:00:06]}  Rg1# {[%clk 0:01:33]} 0-1


[Site "https://www.chess.com"]

[Event "Titled Tuesday Blitz July 18 Early 2023"]
[White "Pinero Rodriguez, Carlos Jose"]
[Black "Mikhailovsky, Vladimir"]
[WhiteFideId "3901726"]
[BlackFideId "34105414"]
[WhiteElo "2581"]
[BlackElo "2749"]
[Result "1-0"]
[Round "5"]
[TimeControl "180+2"]
[Date "2023.07.18"]
[WhiteClock "0:00:34"]
[BlackClock "0:00:00"]
[Board "43"]

1. b3 {[%clk 0:03:00]}  d5 {[%clk 0:02:58]} 2. Bb2 {[%clk 0:03:00]}  Bf5 {[%clk 0:02:58]} 3. Nf3 {[%clk 0:03:00]}  e6 {[%clk 0:02:59]} 4. e3 {[%clk 0:03:01]}  Nf6 {[%clk 0:02:59]} 5. d4 {[%clk 0:03:01]}  Nbd7 {[%clk 0:02:58]} 6. Bd3 {[%clk 0:03:01]}  Bd6 {[%clk 0:02:56]} 7. Nbd2 {[%clk 0:03:01]}  O-O {[%clk 0:02:56]} 8. O-O {[%clk 0:03:01]}  Qe7 {[%clk 0:02:56]} 9. a3 {[%clk 0:03:01]}  c6 {[%clk 0:02:54]} 10. Ne5 {[%clk 0:02:56]}  Ne4 {[%clk 0:02:34]} 11. Nxd7 {[%clk 0:02:42]}  Qxd7 {[%clk 0:02:33]} 12. f4 {[%clk 0:02:28]}  Nxd2 {[%clk 0:02:27]} 13. Qxd2 {[%clk 0:02:29]}  Rfe8 {[%clk 0:02:22]} 14. c4 {[%clk 0:02:24]}  Bxd3 {[%clk 0:02:10]} 15. Qxd3 {[%clk 0:02:24]}  f5 {[%clk 0:02:11]} 16. c5 {[%clk 0:02:16]}  Be7 {[%clk 0:02:06]} 17. b4 {[%clk 0:02:16]}  Kh8 {[%clk 0:01:57]} 18. a4 {[%clk 0:02:14]}  g5 {[%clk 0:01:45]} 19. g3 {[%clk 0:02:13]}  Rg8 {[%clk 0:01:44]} 20. Kh1 {[%clk 0:02:13]}  Rg6 {[%clk 0:01:44]} 21. b5 {[%clk 0:02:10]}  Rag8 {[%clk 0:01:44]} 22. Bc3 {[%clk 0:02:09]}  Rh6 {[%clk 0:01:37]} 23. Rg1 {[%clk 0:02:02]}  Qe8 {[%clk 0:01:34]} 24. Qe2 {[%clk 0:01:46]}  Rh3 {[%clk 0:01:23]} 25. Be1 {[%clk 0:01:35]}  Rg6 {[%clk 0:00:54]} 26. Rg2 {[%clk 0:01:33]}  Bf6 {[%clk 0:00:33]} 27. Bf2 {[%clk 0:01:32]}  g4 {[%clk 0:00:19]} 28. Kg1 {[%clk 0:01:30]}  h5 {[%clk 0:00:19]} 29. Rb1 {[%clk 0:01:29]}  h4 {[%clk 0:00:18]} 30. bxc6 {[%clk 0:01:29]}  bxc6 {[%clk 0:00:17]} 31. Qa6 {[%clk 0:01:19]}  Rg7 {[%clk 0:00:13]} 32. Qe2 {[%clk 0:00:59]}  Rh7 {[%clk 0:00:07]} 33. Qb2 {[%clk 0:00:55]}  hxg3 {[%clk 0:00:07]} 34. Bxg3 {[%clk 0:00:55]}  Kg7 {[%clk 0:00:04]} 35. Qb8 {[%clk 0:00:51]}  Qxb8 {[%clk 0:00:01]} 36. Rxb8 {[%clk 0:00:50]}  Kg6 {[%clk 0:00:02]} 37. a5 {[%clk 0:00:45]}  Bh4 {[%clk 0:00:02]} 38. Bxh4 {[%clk 0:00:44]}  R7xh4 {[%clk 0:00:02]} 39. Rb3 {[%clk 0:00:41]}  Rf3 {[%clk 0:00:02]} 40. Rg3 {[%clk 0:00:37]}  Rxg3+ {[%clk 0:00:01]} 41. hxg3 {[%clk 0:00:37]}  Rh7 {[%clk 0:00:01]} 42. a6 {[%clk 0:00:36]}  Re7 {[%clk 0:00:02]} 43. Rb8 {[%clk 0:00:35]}  Kf7 {[%clk 0:00:03]} 44. Rc8 {[%clk 0:00:35]}  Kf6 {[%clk 0:00:01]} 45. Rxc6 {[%clk 0:00:35]}  Re8 {[%clk 0:00:01]} 46. Rc7 {[%clk 0:00:35]}  Rb8 {[%clk 0:00:00]} 47. Rb7 {[%clk 0:00:34]} 1-0


[Site "https://www.chess.com"]